[Event "*** Titled Tuesday Blitz"]
[Site "Chess.com"]
[Date "2019.09.03"]
[Round "5"]
[White "yiy1156"]
[Black "area_5"]
[Result "0-1"]
[WhiteElo "2560"]
[BlackElo "2713"]
[TimeControl "180+2"]
[EndTime "16:07:16 PDT"]
[Termination "area_5 won by checkmate"]

1. e4 {[%clk 0:03:01.9]} 1... e6 {[%clk 0:03:00.5]} 2. d4 {[%clk 0:03:02.2]}
2... d5 {[%clk 0:03:01.6]} 3. e5 {[%clk 0:03:03.8]} 3... c5 {[%clk 0:03:02.4]}
4. c3 {[%clk 0:03:05]} 4... Nc6 {[%clk 0:03:03.7]} 5. Nf3 {[%clk 0:03:06.2]}
5... Qb6 {[%clk 0:03:04.9]} 6. a3 {[%clk 0:03:07.5]} 6... c4 {[%clk 0:03:06]} 7.
Nbd2 {[%clk 0:03:09]} 7... Na5 {[%clk 0:03:06.6]} 8. Be2 {[%clk 0:03:09.2]} 8...
Bd7 {[%clk 0:03:07.8]} 9. O-O {[%clk 0:03:09.6]} 9... Ne7 {[%clk 0:03:09.1]} 10.
Rb1 {[%clk 0:03:10.3]} 10... Qc7 {[%clk 0:03:07.1]} 11. Re1 {[%clk 0:03:11.6]}
11... Nc8 {[%clk 0:03:07.4]} 12. Nf1 {[%clk 0:03:11.3]} 12... Nb6 {[%clk
0:03:08.3]} 13. Bf4 {[%clk 0:03:11.4]} 13... Ba4 {[%clk 0:03:07.2]} 14. Qc1
{[%clk 0:03:10.6]} 14... h6 {[%clk 0:03:04.6]} 15. h3 {[%clk 0:03:05.9]} 15...
Be7 {[%clk 0:03:02.5]} 16. Bh2 {[%clk 0:02:53.9]} 16... O-O-O {[%clk 0:02:54.2]}
17. Qf4 {[%clk 0:02:49.7]} 17... Rdf8 {[%clk 0:02:53.9]} 18. Ne3 {[%clk
0:02:40.5]} 18... g5 {[%clk 0:02:50.5]} 19. Qg3 {[%clk 0:02:41.6]} 19... Rfg8
{[%clk 0:02:47.8]} 20. Nd2 {[%clk 0:02:24.9]} 20... h5 {[%clk 0:02:42.7]} 21.
Qf3 {[%clk 0:02:20.4]} 21... Bd8 {[%clk 0:02:39.4]} 22. Bd1 {[%clk 0:02:08.9]}
22... Bxd1 {[%clk 0:02:34.3]} 23. Rexd1 {[%clk 0:02:08]} 23... Qe7 {[%clk
0:02:33.7]} 24. b4 {[%clk 0:01:53.8]} 24... cxb3 {[%clk 0:02:32.9]} 25. Nxb3
{[%clk 0:01:43.3]} 25... g4 {[%clk 0:02:30.6]} 26. hxg4 {[%clk 0:01:44]} 26...
hxg4 {[%clk 0:02:30.8]} 27. Qg3 {[%clk 0:01:38.8]} 27... Nac4 {[%clk 0:02:18.8]}
28. Nd2 {[%clk 0:01:32.2]} 28... Nxd2 {[%clk 0:02:06.1]} 29. Rxd2 {[%clk
0:01:33.4]} 29... Rh4 {[%clk 0:02:00.8]} 30. Rdb2 {[%clk 0:01:26.9]} 30... Qxa3
{[%clk 0:01:52.7]} 31. Rb5 {[%clk 0:01:25.3]} 31... Kb8 {[%clk 0:01:47.5]} 32.
R5b3 {[%clk 0:01:11.7]} 32... Qa6 {[%clk 0:01:38.9]} 33. Rb5 {[%clk 0:01:10.6]}
33... Rgh8 {[%clk 0:01:30.8]} 34. Nxg4 {[%clk 0:01:08.6]} 34... Qa4 {[%clk
0:01:29.9]} 35. R1b3 {[%clk 0:00:57.7]} 35... Qc4 {[%clk 0:01:21.1]} 36. Qf3
{[%clk 0:00:44.7]} 36... Qc7 {[%clk 0:01:09.8]} 37. g3 {[%clk 0:00:45.3]} 37...
R4h7 {[%clk 0:01:06.4]} 38. Qe3 {[%clk 0:00:36.7]} 38... Ka8 {[%clk 0:01:03.8]}
39. Kg2 {[%clk 0:00:35.9]} 39... Qc4 {[%clk 0:01:01.4]} 40. Bg1 {[%clk
0:00:32.5]} 40... Qa4 {[%clk 0:00:57.9]} 41. Qc1 {[%clk 0:00:30.4]} 41... Qa2
{[%clk 0:00:56.7]} 42. Rb2 {[%clk 0:00:30.7]} 42... Qc4 {[%clk 0:00:55.7]} 43.
Qe3 {[%clk 0:00:30.2]} 43... Rh1 {[%clk 0:00:53.6]} 44. R2b4 {[%clk 0:00:28.3]}
44... Qa2 {[%clk 0:00:40.7]} 45. Rb2 {[%clk 0:00:29.4]} 45... Qa1 {[%clk
0:00:40.5]} 46. Rb1 {[%clk 0:00:30.1]} 46... Qa4 {[%clk 0:00:41.6]} 47. R1b3
{[%clk 0:00:26.8]} 47... R1h3 {[%clk 0:00:36.1]} 48. Qf3 {[%clk 0:00:21.1]}
48... R3h7 {[%clk 0:00:35.1]} 49. Qe3 {[%clk 0:00:22.3]} 49... Rg8 {[%clk
0:00:28.9]} 50. Nf6 {[%clk 0:00:19.2]} 50... Bxf6 {[%clk 0:00:29.3]} 51. exf6
{[%clk 0:00:21.1]} 51... Qc4 {[%clk 0:00:30.3]} 52. R3b4 {[%clk 0:00:21.2]}
52... Qc8 {[%clk 0:00:29]} 53. Qf3 {[%clk 0:00:20.8]} 53... e5 {[%clk
0:00:28.9]} 54. dxe5 {[%clk 0:00:21.7]} 54... Qh3# {[%clk 0:00:29.2]} 0-1

[Event "*** Titled Tuesday Blitz"]
[Site "Chess.com"]
[Date "2019.09.03"]
[Round "5"]
[White "MikeSailer"]
[Black "2nd_life"]
[Result "0-1"]
[WhiteElo "2117"]
[BlackElo "2376"]
[TimeControl "180+2"]
[EndTime "16:07:32 PDT"]
[Termination "2nd_life won on time"]

1. b4 {[%clk 0:03:01.8]} 1... c6 {[%clk 0:02:57.7]} 2. e3 {[%clk 0:03:02.1]}
2... d5 {[%clk 0:02:55.6]} 3. Nf3 {[%clk 0:03:02.8]} 3... Nf6 {[%clk 0:02:54.2]}
4. c4 {[%clk 0:03:01.8]} 4... Bg4 {[%clk 0:02:45]} 5. cxd5 {[%clk 0:02:55.1]}
5... cxd5 {[%clk 0:02:45.4]} 6. d4 {[%clk 0:02:53]} 6... e6 {[%clk 0:02:40.2]}
7. Qa4+ {[%clk 0:02:43.6]} 7... Nbd7 {[%clk 0:02:29.8]} 8. Ne5 {[%clk
0:02:42.8]} 8... Bf5 {[%clk 0:02:28.6]} 9. Nd2 {[%clk 0:02:27.8]} 9... a6 {[%clk
0:02:27.4]} 10. Ndf3 {[%clk 0:02:07.4]} 10... b5 {[%clk 0:02:15.6]} 11. Qb3
{[%clk 0:01:59.2]} 11... Nb6 {[%clk 0:02:16.3]} 12. Bd2 {[%clk 0:01:52.5]} 12...
Bd6 {[%clk 0:02:14.4]} 13. Be2 {[%clk 0:01:43.8]} 13... O-O {[%clk 0:02:13.3]}
14. O-O {[%clk 0:01:44.8]} 14... Nc4 {[%clk 0:02:12.4]} 15. Nxc4 {[%clk
0:01:31.3]} 15... bxc4 {[%clk 0:02:12.7]} 16. Qa4 {[%clk 0:01:29.2]} 16... Ne4
{[%clk 0:02:11.4]} 17. Rfc1 {[%clk 0:01:20.4]} 17... Bg4 {[%clk 0:02:04.9]} 18.
Be1 {[%clk 0:01:17.4]} 18... f5 {[%clk 0:01:59.9]} 19. h3 {[%clk 0:01:12.9]}
19... Bh5 {[%clk 0:01:52.6]} 20. Qc2 {[%clk 0:01:14.2]} 20... f4 {[%clk
0:01:40.4]} 21. Ne5 {[%clk 0:00:56.8]} 21... fxe3 {[%clk 0:01:28.4]} 22. fxe3
{[%clk 0:00:53.5]} 22... Bxe2 {[%clk 0:01:28.1]} 23. Qxe2 {[%clk 0:00:53.7]}
23... Bxe5 {[%clk 0:01:28.9]} 24. dxe5 {[%clk 0:00:55]} 24... Qg5 {[%clk
0:01:27.5]} 25. Qg4 {[%clk 0:00:27.5]} 25... Qxe5 {[%clk 0:01:24.7]} 26. a4
{[%clk 0:00:20.9]} 26... h5 {[%clk 0:01:08.9]} 27. Qe2 {[%clk 0:00:15.8]} 27...
Rf7 {[%clk 0:01:08.1]} 28. Rab1 {[%clk 0:00:14.2]} 28... Rb8 {[%clk 0:00:47.5]}
29. b5 {[%clk 0:00:14.8]} 29... axb5 {[%clk 0:00:46.6]} 30. Rxb5 {[%clk
0:00:13.6]} 30... Rxb5 {[%clk 0:00:47.1]} 31. axb5 {[%clk 0:00:14.7]} 31... Rb7
{[%clk 0:00:47.5]} 32. Rb1 {[%clk 0:00:11.4]} 32... Kh7 {[%clk 0:00:34.6]} 33.
Qa2 {[%clk 0:00:10.4]} 33... Nd6 {[%clk 0:00:23.8]} 34. Qa8 {[%clk 0:00:11]}
34... Qxe3+ {[%clk 0:00:22.6]} 35. Bf2 {[%clk 0:00:11.7]} 35... Qd3 {[%clk
0:00:20.5]} 36. Re1 {[%clk 0:00:11.4]} 36... Rxb5 {[%clk 0:00:18.5]} 37. Rxe6
{[%clk 0:00:11.1]} 37... Ne4 {[%clk 0:00:14.3]} 38. Bh4 {[%clk 0:00:05.7]} 38...
Rb1+ {[%clk 0:00:09.4]} 39. Kh2 {[%clk 0:00:07.2]} 39... Qd1 {[%clk 0:00:09.8]}
40. Rxe4 {[%clk 0:00:05]} 40... Qg1+ {[%clk 0:00:06.7]} 41. Kg3 {[%clk
0:00:06.2]} 41... Rb3+ {[%clk 0:00:07.1]} 42. Kf4 {[%clk 0:00:06.5]} 42... Qf1+
{[%clk 0:00:07.9]} 43. Ke5 {[%clk 0:00:06.5]} 43... dxe4 {[%clk 0:00:07]} 44.
Qxe4+ {[%clk 0:00:07.7]} 44... Kg8 {[%clk 0:00:08.2]} 45. Qd5+ {[%clk
0:00:07.5]} 45... Qf7 {[%clk 0:00:09.1]} 46. Qd8+ {[%clk 0:00:07.6]} 46... Kh7
{[%clk 0:00:10.2]} 47. Qd4 {[%clk 0:00:05.3]} 47... Rb5+ {[%clk 0:00:08.2]} 48.
Ke4 {[%clk 0:00:06.5]} 48... Qf5+ {[%clk 0:00:08]} 49. Ke3 {[%clk 0:00:07.7]}
49... Re5+ {[%clk 0:00:09]} 50. Kd2 {[%clk 0:00:08.4]} 50... Rd5 {[%clk
0:00:10.4]} 0-1

[Event "*** Titled Tuesday Blitz"]
[Site "Chess.com"]
[Date "2019.09.03"]
[Round "5"]
[White "WPWPWP-2015"]
[Black "GianmarcoVaR"]
[Result "1-0"]
[WhiteElo "2435"]
[BlackElo "2569"]
[TimeControl "180+2"]
[EndTime "16:07:39 PDT"]
[Termination "WPWPWP-2015 won by checkmate"]

1. e4 {[%clk 0:03:01.9]} 1... c5 {[%clk 0:02:59.1]} 2. Nf3 {[%clk 0:03:02.3]}
2... d6 {[%clk 0:03:00.5]} 3. d4 {[%clk 0:03:00.2]} 3... cxd4 {[%clk 0:03:01.4]}
4. Nxd4 {[%clk 0:03:01.8]} 4... Nf6 {[%clk 0:03:02.8]} 5. Nc3 {[%clk 0:03:03.1]}
5... a6 {[%clk 0:03:04.2]} 6. h3 {[%clk 0:03:03.8]} 6... e5 {[%clk 0:02:55.7]}
7. Nde2 {[%clk 0:03:04.2]} 7... h5 {[%clk 0:02:56.9]} 8. Nd5 {[%clk 0:03:03.1]}
8... Nxd5 {[%clk 0:02:57.6]} 9. Qxd5 {[%clk 0:03:03]} 9... Qc7 {[%clk
0:02:58.4]} 10. Nc3 {[%clk 0:03:02.1]} 10... Be7 {[%clk 0:02:55.4]} 11. Be3
{[%clk 0:03:02.4]} 11... Nd7 {[%clk 0:02:53.9]} 12. Bc4 {[%clk 0:02:55.7]} 12...
O-O {[%clk 0:02:54.6]} 13. Be2 {[%clk 0:02:54.9]} 13... Nf6 {[%clk 0:02:52.6]}
14. Qd1 {[%clk 0:02:51.1]} 14... g6 {[%clk 0:02:16.8]} 15. g4 {[%clk 0:02:50.2]}
15... h4 {[%clk 0:02:06]} 16. g5 {[%clk 0:02:49.1]} 16... Nh7 {[%clk 0:01:55.3]}
17. Nd5 {[%clk 0:02:48.3]} 17... Qa5+ {[%clk 0:01:51.7]} 18. c3 {[%clk 0:02:29]}
18... Qd8 {[%clk 0:01:49.4]} 19. Bb6 {[%clk 0:02:19.7]} 19... Qe8 {[%clk
0:01:47.3]} 20. Nc7 {[%clk 0:02:19.2]} 20... Qc6 {[%clk 0:01:46]} 21. Nxa8
{[%clk 0:02:16.9]} 21... Be6 {[%clk 0:01:23]} 22. Be3 {[%clk 0:01:48.5]} 22...
Rxa8 {[%clk 0:01:23.2]} 23. Bd3 {[%clk 0:01:28.7]} 23... Nxg5 {[%clk 0:01:20.5]}
24. Bxg5 {[%clk 0:01:26.1]} 24... Bxg5 {[%clk 0:01:21.7]} 25. Qf3 {[%clk
0:01:24]} 25... Bf4 {[%clk 0:01:06]} 26. Qe2 {[%clk 0:01:06.1]} 26... Kg7 {[%clk
0:01:04]} 27. Qf3 {[%clk 0:00:53.7]} 27... Rh8 {[%clk 0:00:50.1]} 28. Kd1 {[%clk
0:00:41.2]} 28... b5 {[%clk 0:00:40.4]} 29. a3 {[%clk 0:00:41]} 29... a5 {[%clk
0:00:34.9]} 30. Ke2 {[%clk 0:00:41.2]} 30... Rb8 {[%clk 0:00:18.6]} 31. Kf1
{[%clk 0:00:40.7]} 31... Kf6 {[%clk 0:00:17.3]} 32. Kg2 {[%clk 0:00:40.7]} 32...
Qd7 {[%clk 0:00:16.6]} 33. Rad1 {[%clk 0:00:38.8]} 33... Rh8 {[%clk 0:00:17.2]}
34. Qe2 {[%clk 0:00:36.7]} 34... Rh5 {[%clk 0:00:17.7]} 35. Qf3 {[%clk
0:00:35.2]} 35... Rg5+ {[%clk 0:00:15]} 36. Kf1 {[%clk 0:00:36.2]} 36... Qb7
{[%clk 0:00:13.4]} 37. Be2 {[%clk 0:00:35.8]} 37... Ke7 {[%clk 0:00:12.6]} 38.
Qd3 {[%clk 0:00:35.1]} 38... Qc6 {[%clk 0:00:11.6]} 39. Rg1 {[%clk 0:00:28.5]}
39... Rxg1+ {[%clk 0:00:02.3]} 40. Kxg1 {[%clk 0:00:29.5]} 40... Bc4 {[%clk
0:00:03.7]} 41. Qf3 {[%clk 0:00:30.5]} 41... Qd7 {[%clk 0:00:03.7]} 42. Bxc4
{[%clk 0:00:28.9]} 42... bxc4 {[%clk 0:00:05.6]} 43. Kg2 {[%clk 0:00:29.3]}
43... Qb7 {[%clk 0:00:06.8]} 44. Qe2 {[%clk 0:00:29.5]} 44... f5 {[%clk
0:00:08]} 45. Qxc4 {[%clk 0:00:24.5]} 45... fxe4 {[%clk 0:00:07.5]} 46. Qd5
{[%clk 0:00:25.5]} 46... Qd7 {[%clk 0:00:04.6]} 47. Qxe4 {[%clk 0:00:25.6]}
47... Kf6 {[%clk 0:00:05.6]} 48. Qd5 {[%clk 0:00:21.2]} 48... Kg5 {[%clk
0:00:03.8]} 49. Qxd6 {[%clk 0:00:20.3]} 49... Qb7+ {[%clk 0:00:05.3]} 50. Qd5
{[%clk 0:00:20.4]} 50... Qxb2 {[%clk 0:00:06.8]} 51. Qd8+ {[%clk 0:00:21.2]}
51... Kh6 {[%clk 0:00:07]} 52. Qh8+ {[%clk 0:00:21.2]} 52... Kg5 {[%clk
0:00:07.5]} 53. Qd8+ {[%clk 0:00:15.8]} 53... Kf5 {[%clk 0:00:08.6]} 54. Qd7+
{[%clk 0:00:16]} 54... Kg5 {[%clk 0:00:08.9]} 55. Rd6 {[%clk 0:00:15.7]} 55...
Qe2 {[%clk 0:00:05.7]} 56. Qe7+ {[%clk 0:00:14.5]} 56... Kh5 {[%clk 0:00:05.3]}
57. Qh7+ {[%clk 0:00:14.8]} 57... Bh6 {[%clk 0:00:06.5]} 58. Qxg6# {[%clk
0:00:15.6]} 1-0

[Event "*** Titled Tuesday Blitz"]
[Site "Chess.com"]
[Date "2019.09.03"]
[Round "5"]
[White "David_Paravyan"]
[Black "bascheyaro"]
[Result "1-0"]
[WhiteElo "2912"]
[BlackElo "2684"]
[TimeControl "180+2"]
[EndTime "16:07:45 PDT"]
[Termination "David_Paravyan won by resignation"]

1. e4 {[%clk 0:02:58]} 1... e6 {[%clk 0:03:00.7]} 2. d4 {[%clk 0:02:57.7]} 2...
d5 {[%clk 0:03:02.6]} 3. exd5 {[%clk 0:02:59.6]} 3... exd5 {[%clk 0:03:03.7]} 4.
Bb5+ {[%clk 0:03:01]} 4... c6 {[%clk 0:03:04]} 5. Bd3 {[%clk 0:03:02.3]} 5... c5
{[%clk 0:03:05.2]} 6. Nf3 {[%clk 0:02:37.8]} 6... c4 {[%clk 0:03:06.3]} 7. Be2
{[%clk 0:02:37.7]} 7... Bd6 {[%clk 0:03:07.4]} 8. O-O {[%clk 0:02:35.5]} 8...
Ne7 {[%clk 0:03:08.1]} 9. b3 {[%clk 0:02:36.7]} 9... cxb3 {[%clk 0:03:08.8]} 10.
axb3 {[%clk 0:02:37.7]} 10... O-O {[%clk 0:03:10.7]} 11. c4 {[%clk 0:02:37.9]}
11... Nbc6 {[%clk 0:03:11.8]} 12. Nc3 {[%clk 0:02:38.2]} 12... a6 {[%clk
0:03:11.7]} 13. Bg5 {[%clk 0:02:35]} 13... f6 {[%clk 0:03:12.4]} 14. Bh4 {[%clk
0:02:34.6]} 14... Be6 {[%clk 0:03:12.6]} 15. Re1 {[%clk 0:02:33.3]} 15... Qd7
{[%clk 0:03:12.4]} 16. Na4 {[%clk 0:02:29]} 16... Rad8 {[%clk 0:03:04.4]} 17.
Bg3 {[%clk 0:02:18.8]} 17... Bf7 {[%clk 0:02:58.2]} 18. Bxd6 {[%clk 0:02:04.7]}
18... Qxd6 {[%clk 0:02:59.4]} 19. Nc5 {[%clk 0:02:05.6]} 19... Rb8 {[%clk
0:03:00.5]} 20. Qd3 {[%clk 0:01:49.7]} 20... Rfd8 {[%clk 0:02:48.7]} 21. Rad1
{[%clk 0:01:35]} 21... Ng6 {[%clk 0:02:42.2]} 22. Bf1 {[%clk 0:01:31.4]} 22...
a5 {[%clk 0:02:27.4]} 23. g3 {[%clk 0:01:25.4]} 23... dxc4 {[%clk 0:02:14.6]}
24. bxc4 {[%clk 0:01:25.4]} 24... b6 {[%clk 0:02:14.9]} 25. Ne4 {[%clk
0:01:24.8]} 25... Qc7 {[%clk 0:02:05.8]} 26. Qc3 {[%clk 0:01:21.7]} 26... Nb4
{[%clk 0:02:01.6]} 27. d5 {[%clk 0:01:15.1]} 27... Rbc8 {[%clk 0:01:58.9]} 28.
Qb2 {[%clk 0:01:07.5]} 28... Rb8 {[%clk 0:01:38.3]} 29. Nd4 {[%clk 0:00:58]}
29... Ne5 {[%clk 0:01:30.2]} 30. Qb3 {[%clk 0:00:46.1]} 30... Qd7 {[%clk
0:01:20]} 31. Bg2 {[%clk 0:00:42.6]} 31... Rdc8 {[%clk 0:01:08.5]} 32. Nc6
{[%clk 0:00:42.7]} 32... Nexc6 {[%clk 0:00:44.7]} 33. dxc6 {[%clk 0:00:41.9]}
33... Qxc6 {[%clk 0:00:46]} 34. Nd6 {[%clk 0:00:40.9]} 34... Bxc4 {[%clk
0:00:47.1]} 35. Qc3 {[%clk 0:00:30.4]} 35... Qc5 {[%clk 0:00:46.8]} 36. Nxc8
{[%clk 0:00:26.1]} 36... Rxc8 {[%clk 0:00:48.1]} 37. Bh3 {[%clk 0:00:26]} 37...
f5 {[%clk 0:00:45.7]} 38. Rd7 {[%clk 0:00:22.2]} 38... Bf7 {[%clk 0:00:35.1]}
39. Qxc5 {[%clk 0:00:18.9]} 39... bxc5 {[%clk 0:00:37]} 40. Ree7 {[%clk
0:00:18.9]} 40... Rf8 {[%clk 0:00:25]} 41. Bxf5 {[%clk 0:00:19.6]} 41... a4
{[%clk 0:00:25.7]} 42. Be6 {[%clk 0:00:15.5]} 42... h5 {[%clk 0:00:19.6]} 43.
Bxf7+ {[%clk 0:00:09.7]} 43... Kh7 {[%clk 0:00:19.4]} 44. Bc4 {[%clk 0:00:11]}
44... a3 {[%clk 0:00:19.8]} 45. Rxg7+ {[%clk 0:00:10.7]} 45... Kh6 {[%clk
0:00:21.2]} 46. Rge7 {[%clk 0:00:11.2]} 46... a2 {[%clk 0:00:20.5]} 47. Bxa2
{[%clk 0:00:12]} 47... Nxa2 {[%clk 0:00:21.1]} 48. Re6+ {[%clk 0:00:12.1]} 48...
Kg5 {[%clk 0:00:22.5]} 49. Rd5+ {[%clk 0:00:13.1]} 49... Rf5 {[%clk 0:00:22.6]}
50. h4+ {[%clk 0:00:13.1]} 50... Kg4 {[%clk 0:00:23.9]} 51. Rg6+ {[%clk
0:00:12.7]} 51... Kh3 {[%clk 0:00:24.9]} 52. Rxf5 {[%clk 0:00:14.1]} 52... c4
{[%clk 0:00:26.6]} 53. Rc5 {[%clk 0:00:13.9]} 53... c3 {[%clk 0:00:28]} 54. Rgc6
{[%clk 0:00:14.4]} 54... Nc1 {[%clk 0:00:29]} 55. Kf1 {[%clk 0:00:13.4]} 55...
Nd3 {[%clk 0:00:30.1]} 56. Rxc3 {[%clk 0:00:13.9]} 1-0

[Event "*** Titled Tuesday Blitz"]
[Site "Chess.com"]
[Date "2019.09.03"]
[Round "5"]
[White "Colombiano07"]
[Black "bluejay1897"]
[Result "1/2-1/2"]
[WhiteElo "2188"]
[BlackElo "2288"]
[TimeControl "180+2"]
[EndTime "16:07:46 PDT"]
[Termination "Game drawn by stalemate"]

1. d4 {[%clk 0:03:01.9]} 1... Nf6 {[%clk 0:02:58.2]} 2. Bf4 {[%clk 0:03:03.4]}
2... e6 {[%clk 0:02:47.4]} 3. e3 {[%clk 0:03:03.7]} 3... b6 {[%clk 0:02:47.5]}
4. Nf3 {[%clk 0:03:04.2]} 4... Bb7 {[%clk 0:02:48.4]} 5. Nbd2 {[%clk 0:03:05.8]}
5... Be7 {[%clk 0:02:48.2]} 6. h3 {[%clk 0:03:05.8]} 6... O-O {[%clk 0:02:49]}
7. Bd3 {[%clk 0:03:07]} 7... c5 {[%clk 0:02:50.1]} 8. c3 {[%clk 0:03:07.7]} 8...
d5 {[%clk 0:02:50.9]} 9. Ne5 {[%clk 0:03:07.9]} 9... Nbd7 {[%clk 0:02:48]} 10.
Qf3 {[%clk 0:03:07.5]} 10... Rc8 {[%clk 0:02:37.5]} 11. g4 {[%clk 0:03:06.9]}
11... Nxe5 {[%clk 0:02:35.8]} 12. Bxe5 {[%clk 0:03:03.2]} 12... Nd7 {[%clk
0:02:33.1]} 13. Rd1 {[%clk 0:02:03.3]} 13... Nxe5 {[%clk 0:02:23.7]} 14. dxe5
{[%clk 0:02:05.2]} 14... Qc7 {[%clk 0:02:24.8]} 15. O-O {[%clk 0:01:54]} 15...
Qxe5 {[%clk 0:02:19.8]} 16. e4 {[%clk 0:01:52.3]} 16... Bg5 {[%clk 0:02:10]} 17.
Qe2 {[%clk 0:01:45.8]} 17... Bxd2 {[%clk 0:02:07.7]} 18. Rxd2 {[%clk 0:01:44.6]}
18... dxe4 {[%clk 0:02:07.8]} 19. Ba6 {[%clk 0:01:45.8]} 19... Bxa6 {[%clk
0:01:58.4]} 20. Qxa6 {[%clk 0:01:47.7]} 20... e3 {[%clk 0:01:59.1]} 21. Re2
{[%clk 0:01:46.7]} 21... exf2+ {[%clk 0:01:59]} 22. Rfxf2 {[%clk 0:01:48.6]}
22... Qc7 {[%clk 0:01:56.9]} 23. Rd2 {[%clk 0:01:44.8]} 23... Rcd8 {[%clk
0:01:54.6]} 24. Kg2 {[%clk 0:01:46]} 24... h6 {[%clk 0:01:50.9]} 25. a4 {[%clk
0:01:30.3]} 25... e5 {[%clk 0:01:40.7]} 26. a5 {[%clk 0:01:30.7]} 26... bxa5
{[%clk 0:01:35.6]} 27. Qc4 {[%clk 0:01:28.7]} 27... Qc6+ {[%clk 0:01:33.1]} 28.
Kg3 {[%clk 0:01:29.2]} 28... Rde8 {[%clk 0:01:17.4]} 29. Rd5 {[%clk 0:01:25.3]}
29... e4 {[%clk 0:01:15]} 30. Qxc5 {[%clk 0:01:20.2]} 30... Qb7 {[%clk
0:01:05.9]} 31. Qxa5 {[%clk 0:01:17]} 31... e3 {[%clk 0:01:06.4]} 32. Re2 {[%clk
0:01:17.1]} 32... Qb8+ {[%clk 0:01:05.8]} 33. Kg2 {[%clk 0:01:16.5]} 33... Re7
{[%clk 0:01:01.4]} 34. Qb5 {[%clk 0:01:13.8]} 34... Qf4 {[%clk 0:00:59.2]} 35.
Rf5 {[%clk 0:01:13.5]} 35... Qd6 {[%clk 0:00:53.6]} 36. Qd5 {[%clk 0:00:48.4]}
36... Qa6 {[%clk 0:00:49.7]} 37. Qb5 {[%clk 0:00:47.7]} 37... Qd6 {[%clk
0:00:50]} 38. Qd5 {[%clk 0:00:48.4]} 38... Qb6 {[%clk 0:00:36.4]} 39. Qb5 {[%clk
0:00:49.1]} 39... Rd8 {[%clk 0:00:36.1]} 40. Qxb6 {[%clk 0:00:50.2]} 40... axb6
{[%clk 0:00:37.3]} 41. Kf3 {[%clk 0:00:50.5]} 41... Rd2 {[%clk 0:00:33.4]} 42.
Rxd2 {[%clk 0:00:50.3]} 42... exd2 {[%clk 0:00:34.1]} 43. Rd5 {[%clk 0:00:52.2]}
43... Re5 {[%clk 0:00:21.7]} 44. Rxd2 {[%clk 0:00:51]} 44... Kf8 {[%clk
0:00:22.5]} 45. Kf4 {[%clk 0:00:50.7]} 45... Re6 {[%clk 0:00:21.3]} 46. Rd5
{[%clk 0:00:50.2]} 46... Ke7 {[%clk 0:00:22.3]} 47. Re5 {[%clk 0:00:51.7]} 47...
Kd6 {[%clk 0:00:23]} 48. Rxe6+ {[%clk 0:00:53]} 48... Kxe6 {[%clk 0:00:23.7]}
49. Ke4 {[%clk 0:00:54.2]} 49... Kd6 {[%clk 0:00:24.7]} 50. Kd4 {[%clk
0:00:53.7]} 50... g6 {[%clk 0:00:24.1]} 51. c4 {[%clk 0:00:54.5]} 51... Ke6
{[%clk 0:00:21.1]} 52. b4 {[%clk 0:00:54.7]} 52... f5 {[%clk 0:00:20.8]} 53.
gxf5+ {[%clk 0:00:56.6]} 53... gxf5 {[%clk 0:00:21.9]} 54. c5 {[%clk 0:00:55]}
54... bxc5+ {[%clk 0:00:23.1]} 55. bxc5 {[%clk 0:00:56.9]} 55... Kf6 {[%clk
0:00:21.3]} 56. c6 {[%clk 0:00:54.4]} 56... Ke6 {[%clk 0:00:22]} 57. Kc5 {[%clk
0:00:42.5]} 57... f4 {[%clk 0:00:22.6]} 58. c7 {[%clk 0:00:43.7]} 58... Kd7
{[%clk 0:00:22.5]} 59. Kd4 {[%clk 0:00:43.5]} 59... Kxc7 {[%clk 0:00:23.1]} 60.
Ke4 {[%clk 0:00:45]} 60... Kd6 {[%clk 0:00:24.5]} 61. Kxf4 {[%clk 0:00:46.6]}
61... Ke6 {[%clk 0:00:25.8]} 62. Kg4 {[%clk 0:00:48.5]} 62... Kf6 {[%clk
0:00:26.7]} 63. Kh5 {[%clk 0:00:50.4]} 63... Kg7 {[%clk 0:00:27.9]} 64. h4
{[%clk 0:00:52.3]} 64... Kh7 {[%clk 0:00:26.7]} 65. Kg4 {[%clk 0:00:54.2]} 65...
Kg7 {[%clk 0:00:27.8]} 66. Kf5 {[%clk 0:00:55.3]} 66... Kf7 {[%clk 0:00:28.8]}
67. h5 {[%clk 0:00:56.8]} 67... Kg7 {[%clk 0:00:27.6]} 68. Ke6 {[%clk 0:00:58]}
68... Kf8 {[%clk 0:00:28]} 69. Kf6 {[%clk 0:00:59.9]} 69... Kg8 {[%clk 0:00:29]}
70. Kg6 {[%clk 0:01:01.8]} 70... Kh8 {[%clk 0:00:25.6]} 71. Kxh6 {[%clk
0:01:03.7]} 71... Kg8 {[%clk 0:00:26.7]} 72. Kg6 {[%clk 0:01:05.1]} 72... Kh8
{[%clk 0:00:26.9]} 73. h6 {[%clk 0:01:07]} 73... Kg8 {[%clk 0:00:27.8]} 74. h7+
{[%clk 0:01:08.9]} 74... Kh8 {[%clk 0:00:29.1]} 75. Kh6 {[%clk 0:01:07.1]}
1/2-1/2